fUST/lending_fUST_20241103
["ID","MTS","AMOUNT","RATE_DAILY","PERIOD"]
[341204543,1730643046079,-499.90670643,0.000407,120]
[341204544,1730643046090,-250.0,0.00040861,4]
[341204545,1730643046100,-1386.05,0.00040861,4]
[341204546,1730643046109,-500.0,0.00040924,22]
[341204547,1730643046119,-50000.0,0.00041,40]
[341204548,1730643046128,-27677.01792163,0.00041,2]
[341204549,1730643046138,-381440.43142766,0.00041,30]
[341204550,1730643046193,-1811.45661929,0.00041,30]
[341204551,1730643046209,-2146.19598892,0.00041,30]
[341204552,1730643046221,-3400.0,0.00041,30]
[341204553,1730643046238,-151.0,0.0003988,14]
[341204554,1730643046248,-1722.48837836,0.00041,30]
[341204555,1730643046271,-9.55123573,0.00041,30]
[341204556,1730643046489,-496.1,0.00038514,3]
[341204557,1730643046499,-511.84,0.00038514,10]
[341204558,1730643046509,-157.3774282,0.00041,30]
[341204562,1730643104332,153.0,0.00032129,2]
[341204563,1730643104565,153.0,0.00032129,2]
[341204564,1730643104802,153.0,0.00032129,2]
[341204565,1730643109369,153.0,0.00032129,2]
[341204566,1730643137320,500.0,0.00032387,7]
[341204567,1730643137393,500.0,0.00032609,7]
[341204568,1730643137720,500.0,0.00032745,7]
[341204569,1730643140640,500.0,0.00033032,7]
[341204575,1730643146371,500.0,0.00033175,7]
[341204576,1730643147035,4.45598505,0.00033101,7]
[341204588,1730644025167,-170.14452164,0.00028982,61]
[341204589,1730644031124,-137.91536856,0.00028982,61]
[341204590,1730644031148,-250.0,0.00029073,2]
[341204591,1730644031171,-250.0,0.00029153,2]
[341204592,1730644031194,-250.0,0.00029233,2]
[341204593,1730644031217,-250.0,0.00029312,2]
[341204594,1730644031246,-250.0,0.00029392,2]
[341204595,1730644031268,-1124.695603,0.00029424,2]
[341204596,1730644031292,-250.0,0.00029472,2]
[341204597,1730644031315,-250.0,0.00029552,2]
[341204598,1730644031341,-43.47078451,0.00029631,2]
[341204600,1730644116531,424.43250353,0.000134,2]
[341204601,1730644122440,1334.45474234,0.00033523,30]
[341204602,1730644145138,-447.81636525,0.000212,2]
[341204603,1730644145163,-4670.84047047,0.00025,2]
[341204604,1730644145185,-301.6499256,0.00028597,2]
[341204605,1730644145205,-300.0,0.00028996,2]
[341204606,1730644145226,-3000.0,0.00028997,2]
[341204607,1730644145248,-288.978841,0.00029043,2]
[341204608,1730644145273,-206.52921549,0.00029631,2]
[341204609,1730644145295,-250.0,0.00029711,2]
[341204610,1730644145317,-2308.176932,0.00029746,2]
[341204611,1730644145340,-250.0,0.00029791,2]
[341204612,1730644145362,-250.0,0.0002987,2]
[341204613,1730644145384,-250.0,0.0002995,2]
[341204614,1730644145409,-250.0,0.0003003,2]
[341204615,1730644145433,-1124.695603,0.00030109,2]
[341204616,1730644145454,-250.0,0.0003011,2]
[341204617,1730644145478,-250.0,0.00030189,2]
[341204618,1730644145503,-250.0,0.00030269,2]
[341204619,1730644145526,-250.0,0.00030349,2]
[341204620,1730644145549,-250.0,0.00030429,2]
[341204621,1730644145575,-250.0,0.00030508,2]
[341204622,1730644145598,-250.0,0.00030588,2]
[341204623,1730644145619,-1124.695603,0.00030794,2]
[341204624,1730644145640,-5000.0,0.00031475,2]
[341204625,1730644145661,-185.58525703,0.00031475,2]
[341204626,1730644145688,-2205.15649339,0.00031475,2]
[341204627,1730644145711,-16218.1811742,0.00031476,2]
[341204628,1730644148096,-8681.8188258,0.00031476,2]
[341204633,1730644164116,-500.0,0.00032017,2]
[341204634,1730644164138,-504.42097583,0.000322,7]
[341204635,1730644167245,-2205.15649335,0.00032964,2]
[341204636,1730644167270,-197.81689926,0.00033101,7]
[341204637,1730644169118,-1000.0,0.00033387,2]
[341204638,1730644169141,-2052.96,0.000334,2]
[341204639,1730644169165,-1004.74688768,0.00033467,120]
[341204640,1730644169187,-1473.64761151,0.00033468,30]
[341204641,1730644169210,-1000.0,0.00033468,30]
[341204642,1730644169231,-1000.0,0.00033468,30]
[341204643,1730644169254,-1000.0,0.00033468,30]
[341204644,1730644169279,-1000.0,0.00033468,30]
[341204645,1730644169302,-1000.0,0.00033468,30]
[341204646,1730644169326,-500.0,0.0003356,4]
[341204647,1730644169352,-150.0,0.00033561,2]
[341204648,1730644169374,-1144.0,0.00033561,2]
[341204649,1730644169394,-528.0,0.00033561,2]
[341204650,1730644169415,-2374.0,0.00033561,2]
[341204651,1730644169436,-500.0,0.00033834,4]
[341204652,1730644169458,-500.0,0.0003391,7]
[341204653,1730644169490,-504.45256477,0.00033969,7]
[341204654,1730644169520,-500.0,0.00034108,4]
[341204655,1730644169543,-250.0,0.00034348,4]
[341204656,1730644169568,-500.0,0.00034382,4]
[341204657,1730644169594,-2205.15649335,0.00034454,2]
[341204658,1730644169626,-250.0,0.00034622,4]
[341204659,1730644169650,-500.0,0.00034656,4]
[341204663,1730644197451,1847.67,0.000334,2]
[341204687,1730644232444,-3433.74738169,0.00033523,20]
[341204688,1730644232454,-500.0,0.00034746,7]
[341204689,1730644232464,-250.0,0.00034896,4]
[341204690,1730644232473,-500.0,0.0003493,4]
[341204691,1730644232483,-495.54401495,0.00034988,7]
[341204692,1730644232492,-180.91538087,0.00035,2]
[341204693,1730644232504,-791.90876814,0.00035,2]
[341204694,1730644232516,-4784.54170144,0.00035,2]
[341204695,1730644232525,-250.0,0.0003517,4]
[341204696,1730644232535,-500.0,0.00035204,4]
[341204697,1730644232544,-500.0,0.00035478,4]
[341204698,1730644232553,-500.0,0.00035752,4]
[341204699,1730644232563,-500.0,0.00036026,4]
[341204700,1730644232572,-200.20939317,0.0003621,2]
[341204701,1730644232581,-500.0,0.000363,4]
[341204702,1730644232591,-500.0,0.00036574,4]
[341204703,1730644232600,-500.0,0.00036848,4]
[341204704,1730644232609,-500.0,0.00037122,4]
[341204705,1730644232619,-500.0,0.00037396,4]
[341204706,1730644232628,-500.0,0.0003767,4]
[341204707,1730644232644,-500.0,0.00037944,4]
[341204708,1730644232656,-500.0,0.00038218,4]
[341204709,1730644232667,-500.0,0.00038492,4]
[341204710,1730644232676,-500.0,0.00038766,4]
[341204711,1730644232685,-173.61111111,0.0003888,2]
[341204712,1730644232694,-500.0,0.0003904,4]
[341204713,1730644232704,-647.57576,0.00039191,70]
[341204714,1730644232714,-588.47495663,0.00039314,4]
[341204715,1730644232724,-184.322,0.0003998,2]
[341204716,1730644232733,-500.0,0.00040899,7]
[341204717,1730644232742,-355.72188394,0.00040899,120]
[341204718,1730644232751,-3332.59,0.00040899,120]
[341204719,1730644232760,-11223.76296551,0.000409,2]
[341204720,1730644232770,-1000.0,0.000409,2]
[341204721,1730644232779,-3284.1902282,0.000409,120]
[341204733,1730644238560,-937.4705281,0.00035756,2]
[341204734,1730644238570,-1095.7794719,0.000409,120]
[341204735,1730644238669,-647.57576,0.000409,120]
[341204736,1730644238751,-29368.19678882,0.000409,120]
[341204737,1730644238760,-197.81689926,0.000409,30]
[341204738,1730644238770,-426.54,0.0004099,10]
[341204739,1730644238779,-979.64420873,0.00040999,2]
[341204740,1730644238789,-500.0,0.00040999,2]
[341204741,1730644238798,-138280.30210325,0.00041,30]
[341204830,1730644243612,-355.45,0.0004099,10]
[341204831,1730644243623,-1953.81653037,0.00041,30]
[341204843,1730644244912,-8671.91749284,0.00041,30]
[341204844,1730644245004,-16961.55,0.00041,30]
[341204886,1730644257175,1144.0,0.00034565,2]
[341204887,1730644273409,502.91477559,0.00031475,4]
[341204890,1730644289057,503.62948781,0.00031475,4]
[341204891,1730644294249,277.55,0.00034565,2]
[341204892,1730644299820,500.0,0.00031475,4]
[341204893,1730644305370,153.0,0.00032341,2]
[341204894,1730644325767,330.81768577,0.00031475,4]
[341204895,1730644325789,193.56221514,0.00031475,4]
[341204896,1730644332932,504.64514389,0.00031475,4]
[341204897,1730644335198,518.94122464,0.00031475,4]
[341204898,1730644337472,500.0,0.00032393,7]
[341204899,1730644337851,500.0,0.00032479,7]
[341204900,1730644338223,500.0,0.00032504,7]
[341204901,1730644338637,500.0,0.00032564,7]
[341204902,1730644338832,116.0825689,0.0003,120]
[341204903,1730644338854,34.9174311,0.0003,120]
[341204904,1730644339626,504.54029046,0.00031475,4]
[341204905,1730644346621,163.0,0.00027,2]
[341204911,1730645017419,160.030196,0.00013973,2]
[341204912,1730645134154,-200.0,0.000297,120]
[341204913,1730645134176,-218.7630506,0.00029806,2]
[341204914,1730645143090,-70.2157914,0.00029806,2]
[341204915,1730645143114,-151.0,0.0003,120]
[341204916,1730645143136,-400.0,0.00031136,2]
[341204917,1730645143158,-462.63189497,0.00031137,2]
[341204918,1730645226141,-189.765328,0.00029929,2]
[341204919,1730645226169,-189.765328,0.00030449,2]
[341204920,1730645226192,-189.765328,0.00030969,2]
[341204921,1730645226214,-331.36077305,0.00031137,2]
[341204922,1730645229091,-411.8556933,0.00031137,2]
[341204923,1730645230102,-603.96901025,0.00031137,2]
[341204924,1730645245136,-170.08329675,0.00031137,2]
[341204925,1730645249119,-1047.3239979,0.00031137,2]
[341204926,1730645352109,-187.0,0.00031136,2]
[341204927,1730645352133,-11067.87832218,0.00031137,2]
[341204928,1730645352156,-200.0,0.000314,120]
[341204929,1730645352183,-523.61435394,0.00031474,4]
[341204930,1730645352207,-225.58,0.00031474,4]
[341204931,1730645352229,-177.20849788,0.00031474,4]
[341204932,1730645352251,-500.0,0.00031474,4]
[341204933,1730645352275,-500.0,0.00031474,4]
[341204934,1730645352297,-512.1145141,0.00031474,4]
[341204935,1730645352317,-500.0,0.00031474,2]
[341204936,1730645352338,-510.60781511,0.00031475,4]
[341204937,1730645352359,-223.81461497,0.00031475,4]
[341204938,1730645352380,-567.00958039,0.00031475,4]
[341204939,1730645352402,-502.69112925,0.00031475,4]
[341204940,1730645352425,-500.0,0.00031475,4]
[341204941,1730645352458,-500.0,0.00031475,2]
[341204942,1730645352481,-500.0,0.00031475,2]
[341204943,1730645352503,-250.0,0.00031475,4]
[341204944,1730645352527,-519.76,0.00031475,4]
[341204945,1730645352550,-508.7322825,0.00031475,4]
[341204946,1730645352571,-501.54040972,0.00031475,4]
[341204947,1730645352592,-500.0,0.00031475,4]
[341204948,1730645352613,-514.74704726,0.00031475,4]
[341204949,1730645352636,-500.0,0.00031475,4]
[341204950,1730645352657,-517.16453165,0.00031475,4]
[341204951,1730645352679,-521.76797917,0.00031475,4]
[341204952,1730645352700,-500.0,0.00031475,4]
[341204953,1730645352722,-506.0517043,0.00031475,4]
[341204954,1730645352748,-590.01319107,0.00031475,4]
[341204955,1730645352772,-505.63956641,0.00031475,4]
[341204956,1730645352795,-509.86847986,0.00031475,4]
[341204957,1730645352818,-501.88537057,0.00031475,4]
[341204958,1730645352852,-230.23872055,0.00031475,4]
[341204959,1730645352882,-410.03141744,0.00031475,4]
[341204960,1730645352913,-189.765328,0.00031489,2]
[341204961,1730645352940,-151.0,0.00031589,120]
[341204962,1730645352966,-500.0,0.00031748,4]
[341204963,1730645352994,-500.0,0.00031749,4]
[341204964,1730645353023,-250.0,0.00031749,4]
[341204965,1730645353050,-519.76,0.00031749,4]
[341204966,1730645353077,-500.0,0.00031749,4]
[341204967,1730645353105,-1976.62947309,0.00031923,2]
[341204968,1730645359161,500.0,0.00031474,4]
[341204969,1730645360091,-500.0,0.00031748,4]
[341204970,1730645360115,-842.42323778,0.00031923,2]
[341204971,1730645360140,-510.60486784,0.00032022,4]
[341204972,1730645360161,-500.0,0.00032022,4]
[341204973,1730645360185,-500.0,0.00032023,4]
[341204974,1730645360209,-250.0,0.00032023,4]
[341204975,1730645360233,-519.76,0.00032023,4]
[341204976,1730645360256,-500.0,0.00032296,4]
[341204977,1730645360283,-500.0,0.00032297,4]
[341204978,1730645360309,-250.0,0.00032297,4]
[341204979,1730645360333,-519.76,0.00032297,4]
[341204980,1730645360359,-151.0,0.00032301,120]
[341204981,1730645360382,-197.354,0.00032426,32]
[341204982,1730645360406,-282.04301825,0.00032488,2]
[341204983,1730645360430,-225.31156478,0.00032488,2]
[341204984,1730645360454,-244.09289807,0.00032489,4]
[341204985,1730645360481,-500.0,0.00032489,2]
[341204986,1730645360506,-500.0,0.00032489,4]
[341204987,1730645360533,-518.61124738,0.00032489,4]
[341204988,1730645360556,-421.1052839,0.00032489,4]
[341204989,1730645361115,-81.42092332,0.00032489,4]
[341204990,1730645361139,-612.35124848,0.00032489,4]
[341204991,1730645361163,-500.0,0.0003255,2]
[341204992,1730645361186,-501.44712668,0.00032557,2]
[341204993,1730645361208,-224.38279242,0.0003257,4]
[341204994,1730645361231,-634.90190001,0.00032571,4]
[341204995,1730645361254,-250.0,0.00032571,4]
[341204996,1730645361281,-519.76,0.00032571,4]
[341204997,1730645361306,-500.0,0.00032763,2]
[341204998,1730645361331,-500.0,0.00032763,4]
[341204999,1730645361355,-250.0,0.00032845,4]
[341205000,1730645361380,-519.76,0.00032845,4]
[341205001,1730645361567,-500.0,0.00033037,2]
[341205002,1730645361594,-500.0,0.00033037,4]
[341205003,1730645361617,-223.48655,0.000331,120]
[341205004,1730645361640,-250.0,0.00033119,4]
[341205005,1730645361668,-519.76,0.00033119,4]
[341205006,1730645361690,-151.0,0.00033178,120]
[341205007,1730645361714,-366.37219525,0.00033194,4]
[341205008,1730645361737,-500.0,0.00033311,2]
[341205009,1730645361765,-500.0,0.00033311,4]
[341205010,1730645361787,-2819.05271084,0.00033348,2]
[341205011,1730645361811,-250.0,0.00033393,4]
[341205012,1730645361834,-519.76,0.00033393,4]
[341205013,1730645361854,-1715.53,0.000335,2]
[341205014,1730645361876,-500.0,0.0003356,2]
[341205015,1730645361898,-500.0,0.0003356,7]
[341205016,1730645361919,-500.0,0.00033585,2]
[341205017,1730645361941,-500.0,0.00033585,4]
[341205018,1730645361961,-250.0,0.00033667,4]
[341205019,1730645361982,-339.412553,0.00033667,4]
[341205132,1730645439068,-116.3693331,0.00032489,4]
[341205189,1730645440774,-45.7617437,0.00032489,4]
[341205190,1730645440786,-337.8689232,0.00032489,4]
[341205191,1730645440796,-500.0,0.00032763,4]
[341205192,1730645440805,-500.0,0.00033037,4]
[341205193,1730645440815,-18.4966083,0.00033311,4]
[341205233,1730645445610,-481.5033917,0.00033311,4]
[341205234,1730645445625,-500.0,0.00033585,4]
[341205235,1730645445635,-500.0,0.00033859,2]
[341205236,1730645445646,-500.0,0.00033859,4]
[341205237,1730645445656,-500.0,0.00033859,4]
[341205238,1730645445666,-500.0,0.00034133,2]
[341205239,1730645445676,-500.0,0.00034133,4]
[341205240,1730645445686,-500.0,0.00034133,4]
[341205241,1730645445696,-500.0,0.00034245,10]
[341205242,1730645445705,-500.0,0.00034407,4]
[341205243,1730645445716,-500.0,0.00034407,4]
[341205244,1730645445726,-151.0,0.00034603,120]
[341205245,1730645445736,-500.0,0.00034681,4]
[341205246,1730645445745,-500.0,0.00034681,4]
[341205247,1730645445755,-134.14660829,0.00034767,120]
[341205263,1730645446791,-16.85339171,0.00034767,120]
[341205264,1730645446800,-500.0,0.0003493,13]
[341205265,1730645446811,-152.51994406,0.00034955,4]
[341205266,1730645446820,-500.0,0.00034955,4]
[341205267,1730645446829,-188.0,0.00035,2]
[341205268,1730645446841,-1000.0,0.00035068,116]
[341205269,1730645446851,-1024.67215329,0.00035068,116]
[341205270,1730645446861,-500.0,0.00035229,4]
[341205271,1730645446873,-500.0,0.00035503,4]
[341205272,1730645446882,-500.0,0.00035615,16]
[341205273,1730645446891,-500.0,0.00035777,4]
[341205274,1730645446901,-500.0,0.00036051,4]
[341205275,1730645446911,-2819.05271084,0.00036199,2]
[341205276,1730645446920,-500.0,0.000363,19]
[341205277,1730645446929,-500.0,0.00036325,4]
[341205278,1730645446938,-151.0,0.00036356,120]
[341205279,1730645446948,-476.957447,0.00036599,4]
[341205280,1730645446958,-151.0,0.00036904,120]
[341205281,1730645446968,-500.0,0.00036985,22]
[341205282,1730645446978,-2819.05271084,0.00037624,2]
[341205283,1730645446988,-500.0,0.0003767,25]
[341205284,1730645446997,-4185.89,0.00037678,120]
[341205285,1730645447007,-151.0,0.00037945,120]
[341205286,1730645447016,-500.0,0.00038355,28]
[341205287,1730645447025,-4185.89,0.00038637,120]
[341205288,1730645447034,-173.61111111,0.0003888,2]
[341205289,1730645447043,-500.0,0.0003904,31]
[341205290,1730645447053,-1138.55772121,0.00039049,2]
[341205291,1730645447066,-1356.99,0.00039049,2]
[341205293,1730645703844,35349.0,0.0002,2]
[341205294,1730645706037,671928.09886661,0.00033445,35]
[341205299,1730646265095,174.250625,0.00013973,2]
[341205300,1730646337097,-154.0,0.00025,2]
[341205301,1730646337121,-151.0,0.0003,120]
[341205302,1730646337142,-151.0,0.0003,120]
[341205303,1730646337164,-200.0,0.00031473,2]
[341205304,1730646337186,-400.0,0.00031473,2]
[341205305,1730646337207,-500.0,0.00031474,2]
[341205306,1730646337227,-500.0,0.00031474,4]
[341205307,1730646337247,-380.0,0.00031474,4]
[341205308,1730646337267,-500.0,0.00031474,4]
[341205309,1730646337287,-500.0,0.00031474,4]
[341205310,1730646337310,-426.30241882,0.00031474,4]
[341205311,1730646343091,-73.69758118,0.00031474,4]
[341205312,1730646343117,-500.0,0.00031748,4]
[341205313,1730646343139,-92.54234861,0.00031748,4]
[341205345,1730646432179,-265.54675533,0.00024658,2]
[341205346,1730646432205,-103.26045443,0.00031748,4]
[341205351,1730646447100,-304.19719696,0.00031748,4]
[341205352,1730646447123,-59.23150407,0.00031753,120]
[341205354,1730646450098,-91.76849593,0.00031753,120]
[341205355,1730646450125,-264.81157673,0.00032022,4]
[341205360,1730646547143,-235.18842327,0.00032022,4]
[341205361,1730646547176,-446.31,0.00032022,4]
[341205362,1730646547198,-500.0,0.00032296,4]
[341205363,1730646547222,-500.0,0.00032486,4]
[341205364,1730646554094,-500.0,0.0003257,4]
[341205365,1730646554120,-151.0,0.00032603,120]
[341205366,1730646554144,-500.0,0.00032844,4]
[341205367,1730646554168,-400.0,0.00033116,2]
[341205368,1730646554192,-246.09,0.00033117,4]
[341205369,1730646554217,-200.0,0.00033117,4]
[341205370,1730646554249,-500.0,0.00033117,4]
[341205371,1730646554391,-500.0,0.00033117,2]
[341205372,1730646554416,-500.0,0.00033117,4]
[341205373,1730646554438,-500.0,0.00033117,2]
[341205374,1730646554460,-554.99016271,0.00033118,4]
[341205375,1730646554483,-500.0,0.00033391,2]
[341205376,1730646554511,-500.0,0.00033391,4]
[341205377,1730646554534,-179.177969,0.00033491,2]
[341205378,1730646554557,-500.0,0.00033499,3]
[341205379,1730646554580,-281.55261986,0.00033499,120]
[341205380,1730646554606,-1543.98,0.000335,2]
[341205381,1730646554628,-151.0,0.00033507,120]
[341205382,1730646554650,-500.0,0.00033665,2]
[341205383,1730646554670,-500.0,0.00033665,4]
[341205384,1730646554692,-500.0,0.00033666,7]
[341205385,1730646554716,-219.25352445,0.00033773,3]
[341205389,1730646606623,354.69669518,0.00031903,2]
[341205390,1730646628780,442.0,0.00033441,30]
[341205414,1730646631973,-299.17748,0.000335,2]
[341205431,1730646637966,-1090.40252,0.000335,2]
[341205433,1730646637975,-1000.0,0.00033856,4]
[341205434,1730646637985,-500.0,0.00033939,2]
[341205435,1730646637995,-500.0,0.00033939,4]
[341205436,1730646638004,-500.0,0.00034213,2]
[341205437,1730646638013,-500.0,0.00034213,4]
[341205438,1730646638022,-500.0,0.00034351,10]
[341205439,1730646638031,-179.177969,0.00034363,2]
[341205440,1730646638040,-500.0,0.00034487,2]
[341205441,1730646638049,-500.0,0.00034487,4]
[341205442,1730646638058,-150.0,0.00034565,2]
[341205443,1730646638068,-500.0,0.00034761,4]
[341205444,1730646638079,-500.0,0.00034794,3]
[341205445,1730646638088,-188.0,0.00034795,2]
[341205446,1730646638097,-418.49339736,0.00035035,4]
[341205447,1730646638106,-343.92616364,0.00035036,13]
[341205470,1730646643819,-156.07383636,0.00035036,13]
[341205471,1730646643829,-500.0,0.00035068,3]
[341205472,1730646643838,-151.0,0.00035205,120]
[341205473,1730646643847,-179.177969,0.00035236,2]
[341205474,1730646643856,-151.0,0.0003526,120]
[341205475,1730646643866,-186.6367,0.00035342,3]
[341205476,1730646643876,-263.11149464,0.00035721,16]
[341205477,1730646643888,-71.00463196,0.00035721,16]
[341205478,1730646643899,-200.0,0.00036,120]
[341205479,1730646643908,-147.75536804,0.00036247,2]
[341205480,1730646643920,-40.24463196,0.00036247,2]
[341205481,1730646643930,-1500.0,0.0003636,4]
[341205482,1730646643939,-217.3841917,0.0003665,2]
[341205483,1730646643951,-282.6158083,0.0003665,2]
[341205484,1730646643961,-151.0,0.00037014,120]
[341205485,1730646643971,-151.0,0.00037808,120]
[341205486,1730646643981,-158.77864073,0.000379,2]
[341205487,1730646643991,-193.634,0.0003794,30]
[341205488,1730646644001,-91.35640929,0.0003799,3]
[341205516,1730646646296,-141.97359071,0.0003799,3]
[341205517,1730646646307,-699.99,0.0003799,3]
[341205518,1730646646316,-500.0,0.00037998,2]
[341205519,1730646646329,-675.37564363,0.00037999,2]
[341211328,1730646739697,500.0,0.0003101,30]
[341211329,1730646740099,500.0,0.0003101,30]
[341211330,1730646740431,855.19898584,0.0003101,30]
[341211331,1730646740772,500.0,0.0003101,30]
[341211332,1730646741119,533.71357445,0.0003101,30]
[341211453,1730647273703,174.250625,0.00013973,2]
[341211454,1730647547204,-400.0,0.00031009,2]
[341211455,1730647547228,-323.0,0.00031009,2]
[341211456,1730647547250,-5.43513344,0.0003101,30]
[341211457,1730647547280,-494.56486656,0.0003101,30]
[341211458,1730647547303,-500.0,0.0003101,30]
[341211459,1730647547331,-500.0,0.0003101,30]
[341211460,1730647547354,-26.67644956,0.0003101,30]
[341211461,1730647636099,-473.32355044,0.0003101,30]
[341211462,1730647636120,-500.0,0.0003101,30]
[341211463,1730647636142,-578.62304498,0.0003101,30]
[341211464,1730647636164,-333.04077064,0.0003101,30]
[341211470,1730647652124,-188.78807674,0.0003101,30]
[341211477,1730647748123,-11016.43806341,0.00025,2]
[341211478,1730647754122,-403.66339793,0.0003101,30]
[341211479,1730647767103,-170.1445216,0.000333,61]
[341211480,1730647767131,-154.26,0.000334,31]
[341211481,1730647767156,-154.26,0.000334,31]
[341211482,1730647767178,-1297.99,0.000335,2]
[341211483,1730647767204,-742.7326947,0.00034076,2]
[341211484,1730647767228,-250.0,0.00034097,2]
[341211485,1730647767251,-182.644017,0.00034219,2]
[341211486,1730647767273,-182.644017,0.00034228,2]
[341211487,1730647767296,-182.644017,0.00034237,2]
[341211488,1730647767320,-182.644017,0.00034246,2]
[341211489,1730647767343,-182.644017,0.00034255,2]
[341211490,1730647767365,-182.644017,0.00034264,2]
[341211491,1730647767389,-182.644017,0.00034273,2]
[341211492,1730647767410,-642.934124,0.00034274,2]
[341211493,1730647767432,-182.644017,0.00034282,2]
[341211494,1730647767456,-182.644017,0.00034291,2]
[341211495,1730647767478,-235.8825067,0.00034298,2]
[341211496,1730647817010,151.0,0.0003,120]
[341211497,1730647817578,151.0,0.00031945,120]
[341211555,1730647834886,200.0,0.000297,120]
[341211640,1730647845422,153.0,0.00032407,2]
[341211697,1730647846396,-150.0,0.00033441,2]
[341211699,1730647846405,-428.622749,0.00033857,2]
[341211701,1730647846416,-151.0,0.0003389,120]
[341211703,1730647846425,-132.5414033,0.00034298,2]
[341211705,1730647846433,-182.644017,0.000343,2]
[341211706,1730647846441,-182.644017,0.00034309,2]
[341211708,1730647846449,-182.644017,0.00034318,2]
[341211710,1730647846459,-182.644017,0.00034327,2]
[341211712,1730647846467,-182.644017,0.00034336,2]
[341211714,1730647846475,-182.644017,0.00034345,2]
[341211716,1730647846484,-182.644017,0.00034354,2]
[341211718,1730647846496,-45.6933652,0.00034363,2]
[341211850,1730647937803,500.0,0.0003101,30]
[341211851,1730647946186,500.0,0.0003101,30]
[341211852,1730647948123,500.0,0.0003101,30]
[341211853,1730647948487,500.0,0.0003101,30]
[341211854,1730647949908,500.0,0.0003101,30]
[341211855,1730648319951,238.06063079,0.00024,60]
[341211856,1730648434453,204.992847,0.00013973,2]
[341211857,1730648614410,317.0,0.00024,60]
[341211858,1730648736154,-169.181,0.00027534,2]
[341211859,1730648736179,-149.9999989,0.00027788,2]
[341211860,1730648736207,-202.53232,0.000297,120]
[341211861,1730648736232,-151.0,0.0003,120]
[341211862,1730648736260,-163.0,0.0003,2]
[341211863,1730648736284,-325.50950765,0.0003029,2]
[341211864,1730648747102,-408.45761296,0.0003029,2]
[341211865,1730648747126,-673.39863439,0.0003101,30]
[341211866,1730648747150,-500.0,0.0003101,30]
[341211867,1730648747174,-500.0,0.0003101,30]
[341211868,1730648747198,-500.0,0.0003101,30]
[341211869,1730648747223,-151.0,0.00032,120]
[341211870,1730648747246,-170.5081342,0.0003239,2]
[341211871,1730648747276,-153.0,0.00032418,2]
[341211872,1730648747301,-153.0,0.00032418,2]
[341211873,1730648747325,-123.07669409,0.00032966,2]
[341211874,1730648827155,-56.10127591,0.00032966,2]
[341211875,1730648827179,-154.27,0.000334,31]
[341211876,1730648827199,-619.09861311,0.000335,2]
[341211877,1730648842114,-408.88642001,0.0003101,30]
[341211878,1730648850108,-91.11357999,0.0003101,30]
[341211879,1730648850131,-71.41625573,0.0003101,30]
[341211880,1730648851129,-428.58374427,0.0003101,30]
[341211881,1730648851152,-733.86138689,0.000335,2]
[341211882,1730648851173,-151.0,0.00034,120]
[341211883,1730648851194,-33.7348107,0.00034298,2]
[341211885,1730648956113,-259.8586693,0.00034298,2]
[341211886,1730648956138,-136.9506518,0.00034363,2]
[341211887,1730648956161,-182.644017,0.00034372,2]